[Event "GER-chT Youth Countries 2018"]
[Site "Wurzburg"]
[Date "2018.10.05"]
[Round "5"]
[White "Niermann, Tristan"]
[Black "Riehle, Marco"]
[Result "1-0"]
[ECO "E04"]
[WhiteElo "2307"]
[BlackElo "2265"]
[Annotator "NA RC"]
[PlyCount "67"]
[EventDate "2018.10.03"]
[EventType "team-tourn"]
[EventCountry "GER"]
[SourceTitle "playchess.com"]
[Source "ChessBase"]
[SourceQuality "1"]
[TimeControl "40/5400+30:1800+30"]

1. d4 {[%emt 0:00:00]} d5 {[%emt 0:00:10]} 2. c4 {[%emt 0:01:57]} e6 {[%emt 0:00:13]} 3. Nf3 {[%emt 0:00:09]} Nf6 {[%emt 0:00:49]} 4. g3 {[%emt 0:00:07]} dxc4 {[%emt 0:01:03]} 5. Bg2 {[%emt 0:00:13]} Nc6 {[%emt 0:02:18]} 6. Qa4 {[%emt 0:07:41]} Bb4+ {[%emt 0:02:30]} 7. Bd2 {[%emt 0:00:20]} Nd5 {[%emt 0:00:26]} 8. Qb5 {[%emt 0:14:45] E04: Open Catalan: 5 Nf3} (8. Bxb4 Ndxb4 9. O-O Rb8 10. Na3 O-O 11. Qb5 b6 12. Qxc4 Ba6 13. Nb5 Qe8 14. Rfc1 Nd5 15. Qxc6 Qxc6 16. Rxc6 Bxb5 17. Rc2 Rfc8 {½-½ (33) So,W (2780)-Caruana,F (2822) Saint Louis 2018}) 8... Bxd2+ {[%emt 0:07:35]} 9. Nbxd2 {[%emt 0:00:42]} c3 {[%emt 0:00:27]} 10. bxc3 {[%emt 0:01:53]} Nxc3 {[%emt 0:00:21]} 11. Qd3 {[%emt 0:06:57]} Nd5 {[%emt 0:01:59]} 12. O-O {[%emt 0:02:46]} O-O {[%emt 0:00:55]} 13. Rfc1 {[%emt 0:13:08]} Qe7 {[%emt 0:04:18]} 14. e4 {[%emt 0:08:28]} Nf6 $146 {[%emt 0:04:24]} ({Predecessor:} 14... Nb6 15. Qe3 Bd7 16. Nb3 {½-½ (16) Campbell,E (2098)-Moedl,W (2179) ICCF email 2016}) 15. Rab1 {[%emt 0:06:07]} Rd8 {[%emt 0:02:13]} 16. e5 {[%emt 0:02:00]} Nd5 {[%emt 0:01:51]} 17. Ne4 {[%emt 0:01:18]} f5 {[%emt 0:05:16]} 18. exf6 {[%emt 0:04:30]} Nxf6 {[%emt 0:03:05]} 19. Nxf6+ {[%emt 0:01:19]} Qxf6 {[%emt 0:00:14]} 20. Qa3 {[%emt 0:07:35]} a5 $14 {[%emt 0:09:46]} 21. h4 {[%emt 0:04:59]} Ra6 {[%emt 0:06:08]} 22. Bf1 {[%emt 0:00:30]} Rb6 {[%emt 0:00:55]} 23. Rxb6 {[%emt 0:00:08]} cxb6 {[%emt 0:00:04]} 24. Qe3 {[%emt 0:00:43]} Bd7 {[%emt 0:10:38]} 25. Bc4 {[%emt 0:02:41]} Rf8 {[%emt 0:05:57]} 26. Ng5 {[%emt 0:06:03]} Nd8 {[%emt 0:05:57]} 27. Bd3 {[%emt 0:01:01]} g6 {[%emt 0:03:18]} 28. Rc7 {[%emt 0:00:41]} Qe7 {[%emt 0:00:19]} 29. h5 {[%emt 0:01:11]} Qd6 {[%emt 0:00:58]} 30. Qe5 {[%emt 0:00:32]} Qxe5 {[%emt 0:02:34]} 31. dxe5 {[%emt 0:00:04]} Nf7 {[%emt 0:00:06]} 32. Nxh7 {[%emt 0:00:55]} Kxh7 {[%emt 0:00:42]} 33. hxg6+ {[%emt 0:00:03]} Kh6 {[%emt 0:00:04]} 34. Rxd7 {[%emt 0:00:16]} 1-0

[Event "GER-chT Youth Countries 2018"]
[Site "Wurzburg"]
[Date "2018.10.05"]
[Round "5"]
[White "Neukirchner, Pascal"]
[Black "Urban, Konstantin"]
[Result "0-1"]
[ECO "E81"]
[WhiteElo "2294"]
[BlackElo "2279"]
[Annotator "NA"]
[PlyCount "68"]
[EventDate "2018.10.03"]
[EventType "team-tourn"]
[EventCountry "GER"]
[SourceTitle "playchess.com"]
[Source "ChessBase"]
[SourceQuality "1"]
[TimeControl "40/5400+30:1800+30"]

1. d4 {[%emt 0:00:00]} Nf6 {[%emt 0:00:00]} 2. c4 {[%emt 0:00:00]} g6 {[%emt 0:00:00]} 3. f3 {[%emt 0:00:00]} Bg7 {[%emt 0:00:01]} 4. e4 {[%emt 0:00:00]} d6 {[%emt 0:00:06]} 5. Nc3 {[%emt 0:00:00]} O-O {[%emt 0:00:06]} 6. Bg5 {[%emt 0:00:04]} c5 {[%emt 0:00:59]} 7. d5 {[%emt 0:00:04]} a6 {[%emt 0:00:40]} 8. Qd2 {[%emt 0:00:06]} e6 {[%emt 0:01:25]} 9. a4 {[%emt 0:00:04]} exd5 {[%emt 0:00:31]} 10. cxd5 {[%emt 0:00:04]} Re8 {[%emt 0:06:37]} 11. Nge2 {[%emt 0:00:06]} Nbd7 {[%emt 0:01:54]} 12. Ng3 {[%emt 0:00:06]} Qa5 {[%emt 0:01:33]} 13. Be2 {[%emt 0:00:17]} b5 {[%emt 0:12:13]} 14. O-O {[%emt 0:00:08]} b4 {[%emt 0:04:03]} 15. Nd1 {[%emt 0:00:05]} Qc7 {[%emt 0:00:55] A65: Modern Benoni: 6 e4} (15... c4 16. Bxc4 Qc5+ 17. Ne3 h6 18. Bxf6 Bxf6 19. Rac1 Qd4 20. Rc2 Nb6 21. Bb3 Bd7 22. a5 Na4 23. Bxa4 Bxa4 {½-½ (61) Bartholomew,J (2472)-Patel,A (2478) Saint Louis 2018}) 16. a5 {[%emt 0:00:08]} h5 {[%emt 0:00:55]} 17. Ne3 {[%emt 0:02:33]} Nh7 {[%emt 0:01:33]} 18. Bh4 {[%emt 0:00:28]} Ne5 $146 {[%emt 0:13:07]} ({Predecessor:} 18... g5 19. Bxg5 Nxg5 {1-0 (47) Faridani,A (2147)-Cuccumini,V (2225) ICCF email 2014}) 19. f4 {[%emt 0:03:00]} Ng4 {[%emt 0:00:37]} 20. Nxg4 {[%emt 0:00:59]} Bxg4 {[%emt 0:05:14]} 21. Bxg4 {[%emt 0:02:27]} hxg4 {[%emt 0:00:06]} 22. f5 {[%emt 0:00:58]} c4 {[%emt 0:08:51]} 23. f6 {[%emt 0:04:56]} Bf8 {[%emt 0:04:20]} 24. Bg5 {[%emt 0:19:40]} c3 {[%emt 0:03:13]} 25. bxc3 {[%emt 0:00:34]} bxc3 {[%emt 0:03:05]} 26. Qf4 {[%emt 0:00:43]} Re5 {[%emt 0:00:47]} 27. Bh6 {[%emt 0:08:13]} g5 {[%emt 0:05:48]} 28. Qxg4 {[%emt 0:00:13]} Bxh6 {[%emt 0:00:06]} 29. Nf5 {[%emt 0:00:35]} Bf8 {[%emt 0:04:19]} 30. h4 $19 {[%emt 0:06:15]} Qc4 {[%emt 0:03:12]} 31. hxg5 {[%emt 0:09:46]} Rxe4 {[%emt 0:03:30]} 32. Qh5 {[%emt 0:03:16]} Rg4 {[%emt 0:00:22]} 33. Ne3 {[%emt 0:00:20]} Rh4 {[%emt 0:01:00]} 34. g6 {[%emt 0:01:57]} Qxf1+ 0-1

[Event "GER-chT Youth Countries 2018"]
[Site "Wurzburg"]
[Date "2018.10.05"]
[Round "5"]
[White "Bluhm, Sonja Maria"]
[Black "Nguyen, Alex Dac-Vuong"]
[Result "0-1"]
[ECO "C00"]
[WhiteElo "2281"]
[BlackElo "2240"]
[Annotator "NA RC"]
[PlyCount "94"]
[EventDate "2018.10.03"]
[EventType "team-tourn"]
[EventCountry "GER"]
[SourceTitle "playchess.com"]
[Source "ChessBase"]
[SourceQuality "1"]
[TimeControl "40/5400+30:1800+30"]

1. e4 {[%emt 0:00:00]} e6 {[%emt 0:00:00]} 2. d3 {[%emt 0:00:00]} d5 {[%emt 0:00:00]} 3. Nd2 {[%emt 0:00:00]} Nf6 {[%emt 0:00:00]} 4. g3 {[%emt 0:00:00]} dxe4 {[%emt 0:00:25]} 5. dxe4 {[%emt 0:00:00]} b6 {[%emt 0:01:01]} 6. Bg2 {[%emt 0:02:14] C00: French: Unusual White 2nd moves} (6. Bb5+ c6 7. Be2 e5 8. Ngf3 Bc5 9. c3 Qe7 10. b4 Bd6 11. O-O O-O 12. Qc2 Bc7 13. Nc4 b5 {1-0 (44) Antipov,M (2538)-Bluebaum,M (2580) Khanty-Mansiysk 2015}) 6... Bb7 {[%emt 0:00:06]} 7. Ne2 {[%emt 0:04:12]} Bc5 {[%emt 0:02:53]} 8. h3 {[%emt 0:03:44]} O-O {[%emt 0:02:45]} 9. O-O {[%emt 0:00:45]} e5 {[%emt 0:01:46]} 10. b3 $146 {[%emt 0:15:19]} ({Predecessor:} 10. g4 h6 11. Ng3 Nc6 12. Nb3 Qxd1 13. Rxd1 Be7 {0-1 (55) Juergens,V (2280)-Stangl,A (2130) Krefeld 1995}) 10... Qe7 {[%emt 0:05:43]} 11. Bb2 {[%emt 0:02:38]} Rd8 {[%emt 0:05:11]} 12. Qc1 {[%emt 0:00:28]} a5 {[%emt 0:00:47]} 13. a3 {[%emt 0:03:15]} Ba6 {[%emt 0:05:52]} 14. c4 {[%emt 0:15:57]} Nc6 {[%emt 0:01:03]} 15. Nc3 {[%emt 0:04:45]} Nd4 {[%emt 0:01:32]} 16. Re1 {[%emt 0:00:34]} c6 {[%emt 0:01:44]} 17. Na4 {[%emt 0:01:53]} Ne8 {[%emt 0:05:43]} 18. Nxc5 {[%emt 0:03:12]} bxc5 {[%emt 0:04:39]} 19. Bc3 {[%emt 0:02:11]} Bb7 {[%emt 0:00:53]} 20. Rb1 {[%emt 0:00:31]} Nc7 {[%emt 0:03:25]} 21. Nf1 {[%emt 0:02:54]} Nce6 {[%emt 0:01:40]} 22. Ne3 {[%emt 0:00:46]} g6 {[%emt 0:04:40]} 23. Ng4 {[%emt 0:03:41]} f6 {[%emt 0:01:06]} 24. h4 {[%emt 0:02:36]} h5 {[%emt 0:04:25]} 25. Nh2 {[%emt 0:02:49]} Kg7 {[%emt 0:00:36]} 26. Rb2 {[%emt 0:00:32]} a4 {[%emt 0:08:38]} 27. b4 {[%emt 0:06:57]} Nb3 {[%emt 0:00:16]} 28. Qe3 {[%emt 0:00:11]} Ned4 {[%emt 0:03:57]} 29. Bf1 {[%emt 0:02:47]} Ba6 {[%emt 0:01:40]} 30. bxc5 {[%emt 0:03:17]} Qe6 {[%emt 0:01:46]} 31. Bxd4 {[%emt 0:01:23]} exd4 {[%emt 0:01:12]} 32. Qf4 {[%emt 0:01:19]} Ra7 {[%emt 0:01:57]} 33. e5 {[%emt 0:00:44]} f5 {[%emt 0:00:11]} 34. Nf3 {[%emt 0:02:18]} d3 {[%emt 0:00:29]} 35. Rd1 {[%emt 0:06:27]} Rad7 {[%emt 0:02:38]} 36. Ng5 {[%emt 0:01:42]} Qxc4 {[%emt 0:00:09]} 37. Qf3 {[%emt 0:01:11]} Bb5 {[%emt 0:04:11]} 38. Qe3 {[%emt 0:00:48]} Re7 {[%emt 0:01:12]} 39. Nh3 {[%emt 0:02:09]} Qxc5 {[%emt 0:01:05]} 40. Qg5 {[%emt 0:01:04]} Qxe5 {[%emt 0:00:57]} 41. Nf4 {[%emt 0:31:37]} Rd6 {[%emt 0:30:18]} 42. Nxh5+ {[%emt 0:00:00]} Kf7 $19 {[%emt 0:00:00]} 43. Nf4 {[%emt 0:00:00]} Qxb2 {[%emt 0:00:00]} 44. h5 {[%emt 0:00:00]} Qf6 {[%emt 0:00:00]} 45. hxg6+ {[%emt 0:00:00]} Kf8 {[%emt 0:00:00]} 46. Qh6+ {[%emt 0:00:00]} Qg7 {[%emt 0:00:00]} 47. Qg5 {[%emt 0:00:00]} Nd4 {[%emt 0:00:00]} 0-1

[Event "GER-chT Youth Countries 2018"]
[Site "Wurzburg"]
[Date "2018.10.05"]
[Round "5"]
[White "Faerber, David"]
[Black "Pallas, Sebastian"]
[Result "1/2-1/2"]
[ECO "B51"]
[WhiteElo "2279"]
[BlackElo "2278"]
[Annotator "NA RC"]
[PlyCount "79"]
[EventDate "2018.10.03"]
[EventType "team-tourn"]
[EventCountry "GER"]
[SourceTitle "playchess.com"]
[Source "ChessBase"]
[SourceQuality "1"]
[TimeControl "40/5400+30:1800+30"]

1. e4 {[%emt 0:00:00]} c5 {[%emt 0:00:00]} 2. Nf3 {[%emt 0:00:00]} d6 {[%emt 0:00:00]} 3. Bb5+ {[%emt 0:00:00]} Nd7 {[%emt 0:00:24]} 4. O-O {[%emt 0:00:00]} a6 {[%emt 0:00:14]} 5. Bd3 {[%emt 0:00:13] B51: Sicilian: Moscow Variation (3 Bb5+) without 3...Bd7} Ngf6 {[%emt 0:03:16]} 6. Re1 {[%emt 0:00:21]} Qc7 {[%emt 0:00:36]} 7. c3 {[%emt 0:12:05]} b5 {[%emt 0:00:51]} 8. a4 {[%emt 0:02:40]} b4 {[%emt 0:04:17]} 9. Bc2 {[%emt 0:04:58]} Bb7 {[%emt 0:00:58]} 10. d3 {[%emt 0:01:29]} g6 {[%emt 0:04:56]} 11. Nbd2 {[%emt 0:01:15]} bxc3 {[%emt 0:05:38]} 12. bxc3 {[%emt 0:00:26]} Bg7 {[%emt 0:00:09]} 13. Nf1 $146 {[%emt 0:01:52]} O-O {[%emt 0:01:13]} 14. Ng3 {[%emt 0:04:35]} Rac8 {[%emt 0:03:07]} 15. Bg5 {[%emt 0:02:12]} h6 {[%emt 0:02:24]} 16. Bd2 {[%emt 0:07:08]} a5 {[%emt 0:13:04]} 17. h4 {[%emt 0:10:57]} h5 {[%emt 0:04:48]} 18. Bg5 {[%emt 0:07:01]} Rfe8 {[%emt 0:00:53]} 19. Qd2 {[%emt 0:01:56]} Ng4 {[%emt 0:01:27]} 20. Nh2 {[%emt 0:07:36]} Nxh2 {[%emt 0:06:18]} 21. Kxh2 {[%emt 0:00:08]} Ne5 {[%emt 0:00:12]} 22. Kg1 {[%emt 0:10:26]} Ba6 {[%emt 0:14:25]} 23. f4 {[%emt 0:07:02]} Ng4 {[%emt 0:00:27]} 24. f5 {[%emt 0:00:17]} d5 {[%emt 0:01:05]} 25. Bf4 {[%emt 0:01:46]} Be5 {[%emt 0:00:24]} 26. Rf1 {[%emt 0:01:44]} d4 {[%emt 0:08:12]} 27. fxg6 {[%emt 0:02:56]} fxg6 {[%emt 0:00:33]} 28. Bb3+ {[%emt 0:02:15]} e6 {[%emt 0:04:19]} 29. cxd4 {[%emt 0:00:41]} Bxd4+ {[%emt 0:00:48]} 30. Kh1 {[%emt 0:00:09]} Qg7 {[%emt 0:01:37]} 31. Rac1 {[%emt 0:00:43]} Kh8 {[%emt 0:00:31]} 32. Bd1 {[%emt 0:02:34]} Rf8 {[%emt 0:08:39]} 33. Bxg4 {[%emt 0:02:07]} hxg4 {[%emt 0:00:01]} 34. Ne2 {[%emt 0:01:14]} Kh7 {[%emt 0:05:49]} 35. Bg5 {[%emt 0:01:58]} Rxf1+ {[%emt 0:01:28]} 36. Rxf1 {[%emt 0:00:06]} Rf8 {[%emt 0:00:08]} 37. Rxf8 {[%emt 0:00:45]} Qxf8 {[%emt 0:00:04]} 38. Nxd4 {[%emt 0:00:23]} cxd4 {[%emt 0:01:21]} 39. Qxa5 {[%emt 0:00:50]} Bxd3 {[%emt 0:02:47]} 40. Qa7+ $14 {[%emt 0:02:11]} (40. Qc7+ $16 Kg8 41. Qe5) 1/2-1/2

[Event "GER-chT Youth Countries 2018"]
[Site "Wurzburg"]
[Date "2018.10.05"]
[Round "5"]
[White "Roseneck, Jonas"]
[Black "Schmider, Niklas"]
[Result "0-1"]
[ECO "B90"]
[WhiteElo "2262"]
[BlackElo "2190"]
[Annotator "RC"]
[PlyCount "156"]
[EventDate "2018.10.03"]
[EventType "team-tourn"]
[EventCountry "GER"]
[SourceTitle "playchess.com"]
[Source "ChessBase"]
[SourceQuality "1"]
[TimeControl "40/5400+30:1800+30"]

1. e4 {[%emt 0:00:00]} c5 {[%emt 0:00:00]} 2. Nf3 {[%emt 0:00:00]} d6 {[%emt 0:00:00]} 3. d4 {[%emt 0:00:00]} cxd4 {[%emt 0:00:00]} 4. Nxd4 {[%emt 0:00:00]} Nf6 {[%emt 0:00:00]} 5. Nc3 {[%emt 0:00:00]} a6 {[%emt 0:00:00]} 6. f3 {[%emt 0:00:00]} Qb6 {[%emt 0:00:02]} 7. g4 {[%emt 0:00:20]} Nc6 {[%emt 0:01:24]} 8. Nb3 {[%emt 0:00:03]} e6 {[%emt 0:00:26]} 9. Qe2 {[%emt 0:00:04]} Nd7 {[%emt 0:00:46]} 10. Be3 {[%emt 0:03:55]} Qc7 {[%emt 0:00:11]} 11. O-O-O {[%emt 0:01:53]} b5 {[%emt 0:00:34]} 12. f4 {[%emt 0:14:51]} Nb6 {[%emt 0:07:15]} 13. Kb1 {[%emt 0:24:22]} Nc4 {[%emt 0:03:29]} 14. Bc1 {[%emt 0:00:09]} Bd7 {[%emt 0:05:42]} 15. h4 {[%emt 0:02:34]} Rc8 {[%emt 0:06:16]} 16. Rh3 {[%emt 0:03:41]} N6a5 {[%emt 0:04:10]} 17. a3 {[%emt 0:11:06]} Be7 {[%emt 0:06:35]} 18. g5 {[%emt 0:00:32]} Qb6 {[%emt 0:04:49]} 19. Na2 {[%emt 0:04:28]} Nb7 {[%emt 0:03:51]} 20. Nd4 {[%emt 0:02:42]} Bd8 {[%emt 0:18:53]} 21. Rg3 {[%emt 0:01:49]} Qa7 {[%emt 0:04:00]} 22. h5 {[%emt 0:13:29]} Bb6 {[%emt 0:02:12]} 23. c3 {[%emt 0:01:35]} g6 {[%emt 0:09:44]} 24. Qh2 {[%emt 0:03:34]} e5 {[%emt 0:04:17]} 25. Nc2 {[%emt 0:01:39]} Nc5 {[%emt 0:02:51]} 26. hxg6 {[%emt 0:01:23]} fxg6 {[%emt 0:00:09]} 27. Bxc4 {[%emt 0:01:41]} bxc4 {[%emt 0:00:06]} 28. fxe5 {[%emt 0:02:29]} Nxe4 {[%emt 0:02:28]} 29. Rg2 {[%emt 0:01:51]} O-O {[%emt 0:01:20]} 30. Nab4 {[%emt 0:01:03]} dxe5 {[%emt 0:07:28]} 31. Qxe5 {[%emt 0:01:10]} Bf5 {[%emt 0:00:27]} 32. Qd5+ {[%emt 0:01:49]} Qf7 {[%emt 0:00:55]} 33. Nxa6 {[%emt 0:00:36]} Nf2 {[%emt 0:01:01]} 34. Qxf7+ {[%emt 0:00:57]} Rxf7 {[%emt 0:00:04]} 35. Rd6 {[%emt 0:00:04]} Ba7 {[%emt 0:00:46]} 36. Nab4 {[%emt 0:00:53]} Bh3 {[%emt 0:00:45]} 37. Rg1 {[%emt 0:01:16]} Ne4 {[%emt 0:00:19]} 38. Rgd1 {[%emt 0:00:18]} Nxd6 {[%emt 0:00:25]} 39. Rxd6 {[%emt 0:00:01]} Rf1 {[%emt 0:04:05]} 40. Nc6 {[%emt 0:01:10]} Rc7 {[%emt 0:01:02]} 41. Nxa7 {[%emt 0:07:34]} Rxa7 {[%emt 0:00:06]} 42. Ne3 {[%emt 0:00:32]} Rg1 {[%emt 0:02:54]} 43. Kc2 {[%emt 0:00:46]} Rxg5 {[%emt 0:14:08]} 44. Nxc4 {[%emt 0:00:21]} Rg2+ {[%emt 0:00:30]} 45. Kb3 {[%emt 0:02:48]} Bf5 {[%emt 0:01:57]} 46. Be3 {[%emt 0:05:12]} Rd7 {[%emt 0:05:52]} 47. Rb6 {[%emt 0:01:07]} h5 {[%emt 0:01:22]} 48. Rb8+ {[%emt 0:03:54]} Kh7 {[%emt 0:02:03]} 49. Ne5 {[%emt 0:02:04]} Be6+ {[%emt 0:01:28]} 50. Ka4 {[%emt 0:00:21]} Rc7 {[%emt 0:02:33]} 51. Bd4 {[%emt 0:02:27]} g5 {[%emt 0:00:53]} 52. Nf3 {[%emt 0:01:07]} h4 {[%emt 0:00:49]} 53. Rh8+ {[%emt 0:03:33]} Kg6 {[%emt 0:00:09]} 54. Rxh4 {[%emt 0:01:44]} Rxb2 {[%emt 0:01:43]} 55. Rh8 {[%emt 0:00:26]} Kf5 {[%emt 0:00:23]} 56. Rf8+ {[%emt 0:01:56]} Kg4 {[%emt 0:00:10]} 57. Ne5+ {[%emt 0:00:05]} Kh3 {[%emt 0:00:51]} 58. Rh8+ {[%emt 0:00:57]} Kg3 {[%emt 0:00:47]} 59. Nd3 {[%emt 0:00:11]} Bd7+ 60. Ka5 Rb5+ {[%emt 0:00:46]} 61. Ka6 {[%emt 0:00:03]} Rc4 {[%emt 0:00:37]} 62. Nb4 {[%emt 0:01:30]} Rf5 {[%emt 0:00:10]} 63. Nc2 {[%emt 0:01:21]} Rc6+ {[%emt 0:00:41]} 64. Kb7 {[%emt 0:00:34]} Rb5+ {[%emt 0:00:54]} 65. Ka7 {[%emt 0:00:01]} Bg4 {[%emt 0:01:19]} 66. Ne3 {[%emt 0:01:13]} Be2 {[%emt 0:00:20]} 67. a4 {[%emt 0:01:43]} Rc7+ {[%emt 0:00:24]} 68. Ka6 {[%emt 0:00:13]} Rb8+ {[%emt 0:00:41]} 69. Ka5 {[%emt 0:00:12]} Rxh8 {[%emt 0:00:12]} 70. Bxh8 {[%emt 0:00:01]} Ra7+ {[%emt 0:00:08]} 71. Kb4 {[%emt 0:00:10]} Kf3 {[%emt 0:00:15]} 72. Nf5 {[%emt 0:00:44]} Rb7+ {[%emt 0:00:29]} 73. Kc5 {[%emt 0:00:22]} Bf1 {[%emt 0:00:44]} 74. Nd4+ {[%emt 0:01:48]} Ke4 {[%emt 0:01:11]} 75. Nc6 {[%emt 0:00:31]} g4 {[%emt 0:00:32]} 76. Be5 {[%emt 0:00:01]} Rh7 {[%emt 0:00:32]} 77. a5 {[%emt 0:00:57]} Rh5 {[%emt 0:00:21]} 78. Kd6 {[%emt 0:00:18]} Rh6+ {[%emt 0:00:25]} 0-1

[Event "GER-chT Youth Countries 2018"]
[Site "Wurzburg"]
[Date "2018.10.05"]
[Round "5"]
[White "Karsay, Pascal"]
[Black "Walter, Kevin"]
[Result "1-0"]
[ECO "A04"]
[WhiteElo "2261"]
[BlackElo "2190"]
[Annotator "NA RC"]
[PlyCount "53"]
[EventDate "2018.10.03"]
[EventType "team-tourn"]
[EventCountry "GER"]
[SourceTitle "playchess.com"]
[Source "ChessBase"]
[SourceQuality "1"]
[TimeControl "40/5400+30:1800+30"]

1. Nf3 {[%emt 0:00:00]} c5 {[%emt 0:00:02]} 2. g3 {[%emt 0:00:18]} Nc6 {[%emt 0:01:07]} 3. Bg2 {[%emt 0:00:12]} e5 {[%emt 0:01:03]} 4. O-O {[%emt 0:00:26]} g6 {[%emt 0:01:36]} 5. e4 {[%emt 0:02:22]} Bg7 {[%emt 0:00:51]} 6. d3 {[%emt 0:00:50]} Nge7 {[%emt 0:00:45]} 7. c3 {[%emt 0:00:37]} O-O {[%emt 0:03:19]} 8. a3 {[%emt 0:00:10]} d5 {[%emt 0:07:22]} 9. b4 {[%emt 0:00:17]} cxb4 {[%emt 0:08:23]} 10. axb4 {[%emt 0:00:54]} b5 {[%emt 0:01:26]} 11. Nbd2 {[%emt 0:10:04]} a5 {[%emt 0:08:08]} 12. bxa5 {[%emt 0:03:41]} Rxa5 {[%emt 0:00:47]} 13. Ba3 $14 {[%emt 0:03:11]} Re8 {[%emt 0:07:37]} 14. Qb3 {[%emt 0:14:10]} dxe4 {[%emt 0:14:08]} 15. Ng5 {[%emt 0:04:48]} Qd5 {[%emt 0:01:24]} 16. Qxd5 {[%emt 0:06:05]} Nxd5 {[%emt 0:00:12]} 17. Ndxe4 {[%emt 0:00:57]} Rd8 {[%emt 0:26:36]} 18. Nd6 {[%emt 0:12:37]} Rxa3 {[%emt 0:03:58]} 19. Ngxf7 {[%emt 0:00:59]} Rxa1 {[%emt 0:01:45]} 20. Rxa1 {[%emt 0:00:06]} Rxd6 {[%emt 0:03:16]} 21. Nxd6 {[%emt 0:00:08]} Be6 {[%emt 0:00:44]} 22. Ra6 {[%emt 0:05:12]} Nce7 {[%emt 0:01:53]} 23. Nxb5 {[%emt 0:01:21]} Bf5 {[%emt 0:02:12]} 24. c4 {[%emt 0:08:00]} Bxd3 {[%emt 0:01:50]} 25. cxd5 {[%emt 0:01:34]} Bxb5 {[%emt 0:00:07]} 26. Rb6 {[%emt 0:02:32]} Bd7 {[%emt 0:01:58]} 27. Rb7 {[%emt 0:00:20]} 1-0

[Event "GER-chT Youth Countries 2018"]
[Site "Wurzburg"]
[Date "2018.10.05"]
[Round "5"]
[White "Sieber, Fiona"]
[Black "Gschnitzer, Adrian"]
[Result "0-1"]
[ECO "B39"]
[WhiteElo "2246"]
[BlackElo "2363"]
[Annotator "NA"]
[PlyCount "82"]
[EventDate "2018.10.03"]
[EventType "team-tourn"]
[EventCountry "GER"]
[SourceTitle "playchess.com"]
[Source "ChessBase"]
[SourceQuality "1"]
[TimeControl "40/5400+30:1800+30"]

1. e4 {[%emt 0:00:00]} c5 {[%emt 0:00:00]} 2. Nf3 {[%emt 0:00:00]} Nc6 {[%emt 0:00:00]} 3. d4 {[%emt 0:00:00]} cxd4 {[%emt 0:00:00]} 4. Nxd4 {[%emt 0:00:00]} g6 {[%emt 0:00:15]} 5. c4 {[%emt 0:00:00]} Bg7 {[%emt 0:00:08]} 6. Be3 {[%emt 0:00:00]} Nf6 {[%emt 0:00:10]} 7. Nc3 {[%emt 0:00:00]} Ng4 {[%emt 0:00:14]} 8. Qxg4 {[%emt 0:00:06]} Nxd4 {[%emt 0:00:08]} 9. Qd1 {[%emt 0:00:05]} Ne6 {[%emt 0:00:09]} 10. Rc1 {[%emt 0:00:34]} Qa5 {[%emt 0:00:08]} 11. Be2 {[%emt 0:01:14]} b6 {[%emt 0:00:16]} 12. O-O {[%emt 0:00:18]} Bb7 {[%emt 0:00:10]} 13. f3 {[%emt 0:01:34]} g5 {[%emt 0:00:16]} 14. Rf2 {[%emt 0:02:12] B39: Sicilian: Maroczy Bind with 5...Bg7 and 7...Ng4} (14. a3 Qe5 15. Qd2 h5 16. Rfd1 d6 17. b4 Rg8 18. Kh1 h4 19. c5 h3 20. gxh3 Rh8 21. cxd6 exd6 {1-0 (47) Parligras,M (2580)-Mosadeghpour,M (2337) Al Ain 2014}) 14... h5 {[%emt 0:03:07]} 15. Bf1 {[%emt 0:06:51]} Qe5 {[%emt 0:00:20]} 16. Rd2 {[%emt 0:07:40]} d6 {[%emt 0:01:19]} 17. Qa4+ {[%emt 0:11:14]} Kf8 {[%emt 0:00:12] [#]} 18. Nd5 $1 {[%emt 0:06:02]} Nc5 {[%emt 0:11:47]} 19. Qa3 {[%emt 0:10:25]} Ne6 {[%emt 0:05:04]} 20. b4 {[%emt 0:13:21]} Bh6 $146 {[%emt 0:05:36]} ({Predecessor:} 20... Rh6 21. Qa4 Bf6 {1-0 (38) Kasperek,R (2284)-Gromov,S (2135) ICCF email 2004}) 21. Rcd1 {[%emt 0:07:29]} g4 {[%emt 0:12:44]} 22. f4 {[%emt 0:01:15]} Nxf4 {[%emt 0:05:20]} 23. Bd4 {[%emt 0:00:55]} Qxe4 {[%emt 0:00:43]} 24. Bxh8 {[%emt 0:00:44]} Bxd5 $14 {[%emt 0:04:32]} 25. cxd5 {[%emt 0:14:07]} Nh3+ {[%emt 0:02:25]} 26. Kh1 {[%emt 0:08:06]} Bxd2 {[%emt 0:01:46]} 27. Rxd2 {[%emt 0:00:01]} Qe1 {[%emt 0:01:07]} 28. Qd3 {[%emt 0:00:58]} Nf4 {[%emt 0:02:44]} 29. Qc4 {[%emt 0:05:51]} Qxd2 {[%emt 0:00:24]} 30. Bc3 {[%emt 0:00:57]} Qf2 {[%emt 0:02:52]} 31. Bd4 {[%emt 0:01:17]} b5 {[%emt 0:01:43]} 32. Bxf2 {[%emt 0:01:03]} bxc4 {[%emt 0:00:06]} 33. Bxc4 {[%emt 0:00:35]} Rc8 {[%emt 0:00:32]} 34. Bb5 {[%emt 0:00:43]} Rc1+ {[%emt 0:00:29]} 35. Bg1 {[%emt 0:00:00]} Nxd5 {[%emt 0:00:29]} 36. g3 {[%emt 0:00:19]} Nxb4 {[%emt 0:00:31]} 37. a3 {[%emt 0:00:15]} Nc2 {[%emt 0:00:33]} 38. Kg2 {[%emt 0:00:44]} Ne1+ {[%emt 0:00:43]} 39. Kf2 {[%emt 0:00:10]} Nf3 {[%emt 0:00:06]} 40. Bf1 {[%emt 0:00:13]} Nxg1 {[%emt 0:00:28]} 41. Kxg1 {[%emt 0:30:04]} Rxf1+ {[%emt 0:30:12]} 0-1